Cogmind - Beta 16.1 @@@ ROGUE MODE // 2026.04.05 @ 10:20:07 Player: FALKE Result: Destroyed by Y-45 Defender with Heavy Assault Rifle Performance ------------- Evolutions (2) 1000 Regions Visited (5) 1000 Robots Destroyed (13) 65 Value Destroyed (274) 274 Prototype IDs (25) 500 Alien Tech Used (0) 0 Bonus (300) 300 TOTAL SCORE: 3139 Bonus ------- Aligned with FarCom 300 Cogmind --------- Core Integrity 0/550 Matter 215/300 Energy 100/100 System Corruption 3% Temperature Cool (9) Movement Core (100) Ox1 Location -8/Materials Parts ------- > --- POWER (2) -------- (None) > --- PROPULSION (3) --- (None) > --- UTILITY (4) ------ Small Storage Unit > --- WEAPON (2) ------- (None) > --- INVENTORY (8) ---- Small Storage Unit Grenade Launcher Deploy-a-Sentry Deploy-a-Sentry Peak State ------------ > --- POWER ------------ Light Ion Engine > --- PROPULSION ------- Aluminum Leg Aluminum Leg > --- UTILITY ---------- Small Storage Unit Shock Absorption System > --- WEAPON ----------- Firepult > --- INVENTORY -------- Light Ion Engine Small Storage Unit Latent Energy Streamer Assault Rifle Light Assault Rifle Grenade Launcher Deploy-a-Sentry [Rating: 30] Favorites ----------- Power Light Ion Engine Engine Light Ion Engine Power Core Nuclear Core Propulsion Aluminum Leg Treads Light Treads Leg Aluminum Leg Utility Small Storage Unit Device Shock Absorption System Storage Small Storage Unit Weapon Assault Rifle Energy Gun Small Laser Energy Cannon Firepult Ballistic Gun Assault Rifle Launcher Grenade Launcher Build | -11 -10 -10 -10 -9 -8 ------- Run | Yrd Mat Min Exi Min Mat Slots Evolved 4 | . . . . . 4 Power 1 | . . . . . 1 Propulsion 1 | . . . . . 1 Utility 2 | . . . . . 2 Weapon . | . . . . . . Parts Attached 17 | 10 1 . 1 1 4 Power 4 | 2 . . . . 2 Engine 3 | 2 . . . . 1 Core 1 | . . . . . 1 Reactor . | . . . . . . Propulsion 5 | 4 . . . . 1 Treads 2 | 2 . . . . . Leg 3 | 2 . . . . 1 Wheel . | . . . . . . Hover . | . . . . . . Flight . | . . . . . . Utility 2 | 2 . . . . . Device 1 | 1 . . . . . Storage 1 | 1 . . . . . Processor . | . . . . . . Hackware . | . . . . . . Protection . | . . . . . . Artifact . | . . . . . . Weapon 6 | 2 1 . 1 1 1 Energy Gun 1 | 1 . . . . . Energy Cannon 2 | . . . 1 1 . Ballistic Gun 2 | 1 . . . . 1 Ballistic Cannon . | . . . . . . Launcher 1 | . 1 . . . . Special Weapon . | . . . . . . Impact Weapon . | . . . . . . Slashing Weapon . | . . . . . . Piercing Weapon . | . . . . . . Special Melee Weapon . | . . . . . . Unidentified Prototypes . | . . . . . . Parts Lost 10 | . . . . . 10 Power 3 | . . . . . 3 Propulsion 3 | . . . . . 3 Utility 1 | . . . . . 1 Weapon 3 | . . . . . 3 Highest Loss Streak 10 | . . . . . 10 To Critical Strikes . | . . . . . . Average Backups 4 | 4 5 7 6 5 3 Power . | . 1 1 1 1 . Propulsion 1 | 1 2 2 1 . . Utility . | . . 2 1 1 1 Weapon 1 | . 1 2 2 3 2 Tool/Special . | . . . . . . Unused Backups 5 | . . . 4 . 1 Power 1 | . . . 1 . . Propulsion 2 | . . . 2 . . Utility 2 | . . . 1 . 1 Weapon . | . . . . . . Tool/Special . | . . . . . . Average Slot Usage (%) 89 | . 97 100 96 84 45 Engine 13 | . 14 14 14 14 9 Leg 26 | . 28 28 28 28 13 Device 12 | . 11 14 14 14 4 Storage 13 | . 14 14 14 14 9 Energy Cannon 4 | . . . 3 13 4 Ballistic Gun 8 | . 14 14 10 . 3 Launcher 7 | . 9 14 10 . 1 Peak Build Rating 30 | 10 10 10 30 30 21 Average Rating 9 | 7 9 10 14 29 13 On Entrance 13 | . 10 10 10 30 19 Avg Prop Armor Cover (%) . | . . . . . . Naked Turns . | . . . . . . Heaviest Build 33 | 14 16 16 33 33 27 Greatest Support 40 | 40 20 20 20 20 20 Greatest Overweight (x) 1 | 1 . . 1 1 1 Average Overweight (x) . | . . . . 1 . Largest Inventory Capacity 8 | 8 8 8 8 8 8 Average Capacity 7 | 7 8 8 8 8 8 Most Carried 8 | 5 7 7 8 8 6 Average Carried 4 | 4 5 7 7 7 5 Final Capacity 8 | 8 8 8 8 8 8 Final Carried 8 | 4 7 7 8 7 4 Class Distribution -------------------- 100% | Mutant Dominant Class ---------------- Mutant | -10/Materials Mutant | -10/Mines Mutant | -10/Exiles Mutant | -9/Mines Mutant | -8/Materials Resources | -11 -10 -10 -10 -9 -8 ----------- Run | Yrd Mat Min Exi Min Mat Matter Collected 455 | 333 95 . . 27 . Remotely . | . . . . . . Salvage Created 432 | 88 148 . . 100 96 Parts 23 | 3 10 . . 4 6 Haulers Intercepted . | . . . . . . Recyclers Shooed . | . . . . . . Parts Field Recycled . | . . . . . . Retrieved Matter . | . . . . . . Parts Self-Destructed . | . . . . . . Prevented . | . . . . . . Parts Restored . | . . . . . . Kills | -11 -10 -10 -10 -9 -8 ------- Run | Yrd Mat Min Exi Min Mat Combat Hostiles Destroyed 5 | 1 . . . 2 2 Guns 2 | 1 . . . . 1 AOE 2 | . . . . 1 1 Classes Destroyed 8 | 3 2 . . 2 1 Builder 3 | . 2 . . . 1 Tunneler 1 | 1 . . . . . Recycler 3 | 1 2 . . . . Watcher 2 | . 1 . . . 1 Grunt 2 | . . . . 1 1 Duelist 1 | . . . . 1 . Hunter 1 | . . . . . 1 Assembled 1 | 1 . . . . . Best Kill Streak 2 | 1 2 . . 2 1 Combat Bots Only 2 | 1 . . . 2 1 Max Kills in Single Turn 2 | 1 2 . . 1 1 Gunslinging . | . . . . . . Exploded 1 | . . . . 1 1 Melee . | . . . . . . Uniques/NPCs Destroyed . | . . . . . . Combat | -11 -10 -10 -10 -9 -8 -------- Run | Yrd Mat Min Exi Min Mat Hostile Shots Fired 153 | 7 1 . . 19 126 Missed 39 | 1 1 . . 5 32 Hits 114 | 6 . . . 14 94 Projectile 114 | 6 . . . 14 94 Critical Strikes 2 | . . . . . 2 Damage Taken 1640 | 92 16 . . 111 1421 Core 613 | 51 . . . 6 556 Absorbed by Shields . | . . . . . . Ignored by Resistances 6 | . 6 . . . . Regen/Repaired (Parts) 20 | . 20 . . . . Core Remaining (%) 78 | 79 . . . 77 . Volleys Fired 36 | 12 9 . . 2 13 Largest 2 | 2 2 . . 1 2 Hottest 250 | 60 60 . . 250 60 Shots Fired 58 | 24 15 . . 2 17 Gun 48 | 24 11 . . . 13 Cannon 3 | . . . . 2 1 Launcher 7 | . 4 . . . 3 Special . | . . . . . . Kinetic 34 | 12 9 . . . 13 Thermal 16 | 12 2 . . 2 . Explosive 7 | . 4 . . . 3 Electromagnetic 1 | . . . . . 1 Robot Hit Streak 7 | 6 7 . . 1 7 Robot Miss Streak 3 | 3 2 . . 2 3 Penetration Max . | . . . . . . Secondary Targets . | . . . . . . Shots Hit Robots 33 | 14 6 . . 1 12 Core Hits 23 | 5 8 . . 3 7 Critical Kills . | . . . . . . Critical Parts Destroyed . | . . . . . . Critical Strikes . | . . . . . . Melee Attacks . | . . . . . . Impact . | . . . . . . Slashing . | . . . . . . Piercing . | . . . . . . Sneak Attacks . | . . . . . . Combat Hostiles . | . . . . . . Follow-up Attacks . | . . . . . . Damage Inflicted 1059 | 175 283 . . 92 509 Guns 307 | 175 68 . . . 64 Cannons . | . . . . . . Explosions 752 | . 215 . . 92 445 Melee . | . . . . . . Ramming . | . . . . . . Kinetic 226 | 106 56 . . . 64 Thermal 173 | 69 12 . . 92 . Explosive 397 | . 215 . . . 182 Electromagnetic 263 | . . . . . 263 Impact . | . . . . . . Slashing . | . . . . . . Piercing . | . . . . . . Highest Corruption 3 | . 1 1 1 1 3 Average Corruption 1 | . 1 1 1 1 3 Corruption Purged . | . . . . . . Corruption Blocked . | . . . . . . Effects 8 | . 2 . 5 1 . Matter Fused 3 | . 1 . 2 . . Heat Flow Errors 1 | . 1 . . . . Energy Discharges 3 | . . . 2 1 . Data Loss (minor) 1 | . . . 1 . . Overload Shots . | . . . . . . Overflow Damage . | . . . . . . Projectiles . | . . . . . . Explosions . | . . . . . . Melee . | . . . . . . Knockbacks . | . . . . . . Impact . | . . . . . . Kinetic . | . . . . . . Secondary . | . . . . . . Self-Inflicted Damage 33 | . 17 . . . 16 Shots 2 | . 1 . . . 1 Rammed . | . . . . . . Targets Rammed . | . . . . . . Kicked . | . . . . . . Crushed . | . . . . . . Highest Temperature 420 | . 161 . . 420 30 Average Temperature 151 | . 88 . . 219 12 Received Heat Transfer 531 | . . . . . 531 Effects 1 | . . . . 1 . Short Circuit 1 | . . . . 1 . Siege Activations . | . . . . . . Martial Activations . | . . . . . . Shielding Activations . | . . . . . . Robots Disrupted . | . . . . . . Combat Hostiles . | . . . . . . Robots Corrupted . | . . . . . . Combat Hostiles . | . . . . . . Parts Fried 1 | . . . . . 1 Impact Corruptions . | . . . . . . Robots Melted 1 | . . . . 1 . Combat Hostiles 1 | . . . . 1 . Parts Melted 2 | . . . . 2 . Heat Transferred 735 | 150 25 . . 560 . Parts Sabotaged . | . . . . . . Parts Stolen . | . . . . . . Parts Stripped . | . . . . . . Power Chain Reactions . | . . . . . . Latent Energy Used 139 | . . . . . 139 LE Corruption 3 | . . . . . 3 Alert | -11 -10 -10 -10 -9 -8 ------- Run | Yrd Mat Min Exi Min Mat Maximum Alert Level . | . . . . . . Low Security (%) 100 | 100 100 100 . 100 100 Level 1 . | . . . . . . Level 2 . | . . . . . . Level 3 . | . . . . . . Level 4 . | . . . . . . Level 5 . | . . . . . . High Security . | . . . . . . Max Security . | . . . . . . Peak Influence 60 | 5 27 . . 60 43 Initial 17 | . 3 . . . 17 Average 1 | . 5 . . 10 11 Influence Increases 251 | 10 50 . . 75 116 Destroy 0b10 Robot/C 80 | . . . . 40 40 Destroy 0b10 Robot/NC 45 | 10 25 . . . 10 Destroy Leader 24 | . 2 . . 10 12 Successful Hack 14 | . 4 . . . 10 Disable Machine 15 | . . . . . 15 Destroy Structure 58 | . 19 . . 10 29 Lose Combat Pursuer 15 | . . . . 15 . Influence Decreases 248 | 5 55 . . 30 158 Entered New Map 30 | . 2 . . . 28 Time Decay 157 | 5 53 . . 30 69 Lost Part 61 | . . . . . 61 Squads Dispatched 2 | . 1 . . . 1 Investigation 2 | . 1 . . . 1 Extermination . | . . . . . . Reinforcement . | . . . . . . Assault . | . . . . . . Garrison . | . . . . . . Intercept . | . . . . . . Searches Triggered . | . . . . . . Construction Impeded . | . . . . . . Haulers Reinforced . | . . . . . . Active Scanning Responses . | . . . . . . Cargo Convoy Interrupts . | . . . . . . Stealth | -11 -10 -10 -10 -9 -8 --------- Run | Yrd Mat Min Exi Min Mat Distress Signals 1 | . 1 . . . . Communications Jammed . | . . . . . . Distress Signals . | . . . . . . Times Spotted 18 | 1 4 . . 6 7 Peak Tracking Total 4 | 1 2 . . 4 4 Tactical Retreats 1 | . . . . 1 . Traps | -11 -10 -10 -10 -9 -8 ------- Run | Yrd Mat Min Exi Min Mat Traps Triggered . | . . . . . . Indirectly . | . . . . . . Trap Hack Attempts . | . . . . . . Triggered . | . . . . . . Disarmed . | . . . . . . Reprogrammed . | . . . . . . Reused . | . . . . . . Traps Extracted . | . . . . . . Installed . | . . . . . . Triggered . | . . . . . . Machines | -11 -10 -10 -10 -9 -8 ---------- Run | Yrd Mat Min Exi Min Mat Machines Disabled 1 | . . . . . 1 Max in Single Turn 1 | . . . . . 1 Machines Repaired . | . . . . . . Machines Dismantled . | . . . . . . Machines Sabotaged . | . . . . . . Overloaded Fab Kills . | . . . . . . Hacking | -11 -10 -10 -10 -9 -8 --------- Run | Yrd Mat Min Exi Min Mat Machines Accessed 9 | . 3 . 5 . 1 Terminals 2 | . 1 . . . 1 Fabricators . | . . . . . . Repair Stations 1 | . 1 . . . . Recycling Units 1 | . 1 . . . . Scanalyzers . | . . . . . . Garrison Access . | . . . . . . Total Hacks 45 | . 6 . 35 . 4 Successful 40 | . 3 . 35 . 2 Failed 5 | . 3 . . . 2 Catastrophic . | . . . . . . Database Lockouts . | . . . . . . Manual 1 | . . . 1 . . Terminals 6 | . 2 . . . 4 Fabricators . | . . . . . . Repair Stations 3 | . 3 . . . . Recycling Units 1 | . 1 . . . . Scanalyzers . | . . . . . . Garrison Access . | . . . . . . Terminal Hacks 37 | . . . 35 . 2 Record 34 | . . . 34 . . Prototype ID Bank 1 | . . . . . 1 Zone Layout 1 | . . . . . 1 Proto ID Catalog 1 | . . . 1 . . Fabricator Hacks . | . . . . . . Repair Station Hacks 2 | . 2 . . . . Scan Component 1 | . 1 . . . . Repair 1 | . 1 . . . . Recycling Unit Hacks 1 | . 1 . . . . Report Inventory 1 | . 1 . . . . Scanalyzer . | . . . . . . Garrison Access Hacks . | . . . . . . Unauthorized Hacks . | . . . . . . Terminals . | . . . . . . Fabricators . | . . . . . . Repair Stations . | . . . . . . Recycling Units . | . . . . . . Scanalyzers . | . . . . . . Garrison Access . | . . . . . . Data Cores Recovered . | . . . . . . Used . | . . . . . . Hacking Detections 3 | . 2 . . . 1 Full Trace Events 2 | . 1 . . . 1 Feedback Events 1 | . 1 . . . . Corruption 1 | . 1 . . . . Feedback Blocked . | . . . . . . Robot Schematics Acquired . | . . . . . . Robots Built . | . . . . . . Authchips . | . . . . . . Time . | . . . . . . Total Robot Build Rating . | . . . . . . Part Schematics Acquired . | . . . . . . Parts Built . | . . . . . . Authchips . | . . . . . . Time . | . . . . . . Total Part Build Rating . | . . . . . . Part Studies Acquired . | . . . . . . Parts Repaired 1 | . 1 . . . . Time 44 | . 44 . . . . Parts Recycled . | . . . . . . Recycled Matter . | . . . . . . Retrieved Matter . | . . . . . . Retrieved Components . | . . . . . . Parts Scanalyzed . | . . . . . . Part Schematics Acquired . | . . . . . . Parts Damaged . | . . . . . . Bothacking | -11 -10 -10 -10 -9 -8 ------------ Run | Yrd Mat Min Exi Min Mat Used RIF Installer . | . . . . . . Robots Hacked . | . . . . . . Non-combat . | . . . . . . Combat . | . . . . . . Robot Hacks Applied . | . . . . . . Relay Couplers Released . | . . . . . . Fabnet Peak Effective % . | . . . . . . Robots Rewired . | . . . . . . Allies Hacked . | . . . . . . Hacks Repelled . | . . . . . . Allies | -11 -10 -10 -10 -9 -8 -------- Run | Yrd Mat Min Exi Min Mat Total Allies . | . . . . . . Largest Group . | . . . . . . Highest-Rated Group . | . . . . . . Highest-Rated Ally . | . . . . . . Total Orders . | . . . . . . Ally Attacks . | . . . . . . Total Damage . | . . . . . . Kills . | . . . . . . Allies Corrupted . | . . . . . . Allies Melted . | . . . . . . Intel | -11 -10 -10 -10 -9 -8 ------- Run | Yrd Mat Min Exi Min Mat Active Infowar (turns) . | . . . . . . Robot Analysis Total . | . . . . . . Derelict Logs Recovered 2 | . . 1 . 1 . Drone Launches . | . . . . . . Drone Recoveries . | . . . . . . Exploration | -11 -10 -10 -10 -9 -8 ------------- Run | Yrd Mat Min Exi Min Mat Turns Passed 7757 | 6072 256 65 900 276 188 Spaces Moved 1808 | 740 141 48 678 131 70 Core 31 | 30 . . . . 1 Treads 8 | 8 . . . . . Legs 1769 | 702 141 48 678 131 69 Wheels . | . . . . . . Hover . | . . . . . . Flight . | . . . . . . Fastest Speed 50 | 50 120 120 120 190 100 Average Speed 129 | 117 120 120 130 190 155 Slowest Speed 190 | 160 120 120 190 190 190 Overloaded Moves . | . . . . . . Propulsion Burnouts . | . . . . . . Robots Hopped . | . . . . . . Potential Cave-ins 2 | 2 . . . . . Cave-ins Triggered . | . . . . . . Exploration Rate (%) 45 | 87 32 15 92 35 9 Regions Visited 5 Branch Regions 3 Pre-discovered Areas 2 | . . 1 1 . . Known Exits Taken . | . . . . . . Unknown Exits Taken 5 | 1 1 1 1 1 . Scrap Searched 1 | . . . . 1 . Spaces Dug . | . . . . . . Terrain Destroyed 75 | . 19 . . 25 31 Melee . | . . . . . . Projectile 2 | . . . . 2 . AOE 73 | . 19 . . 23 31 Terrain Rammed . | . . . . . . Walls Destroyed . | . . . . . . Machines Disabled . | . . . . . . Actions | -11 -10 -10 -10 -9 -8 --------- Run | Yrd Mat Min Exi Min Mat Total 7165 | 5913 212 55 695 157 133 Wait 5271 | 5139 57 8 3 23 41 Move 1803 | 739 140 47 677 130 70 Hop . | . . . . . . Pick Up 21 | 10 4 . 5 . 2 Fast Attach 4 | 4 . . . . . Attach 11 | 3 1 . 1 1 5 Detach 2 | . . . 2 . . Swap 6 | 3 1 . . . 2 Drop 9 | 3 . . 5 1 . Fire 36 | 12 9 . . 2 13 Melee . | . . . . . . Ram . | . . . . . . Kick . | . . . . . . Crush . | . . . . . . Escape Stasis . | . . . . . . Rewire 2 | . . . 2 . . Trap . | . . . . . . Miscellaneous . | . . . . . . Route ------- -11/Scrapyard -10/Materials -10/Mines (discovered 2 exits: [*Mat] / *Exi) -10/Exiles (discovered 2 exits: [*Min x2]) -9/Mines (discovered 2 exits: *Mat x2) -8/Materials History --------- Turn | Location | Event 2 | -11/Scrapyard | Met Revision 17 12 | -11/Scrapyard | Discovered new exit (range 16) 2333 | -11/Scrapyard | Assembled infested the area 6073 | -11/Scrapyard | Entered Materials 6074 | -10/Materials | Build established: Mutant 6142 | -10/Materials | Discovered new exit (range 15) 6221 | -10/Materials | Met 8R-AWN 6303 | -10/Materials | Repaired Shock Absorption System 6329 | -10/Materials | Entered Mines 6331 | -10/Mines | Followed 8R-AWN into the Mines 6342 | -10/Mines | Discovered new exit (range 15) 6347 | -10/Mines | Learned location of Zion (-7) 6388 | -10/Mines | Discovered new exit (range 5) 6394 | -10/Mines | Entered Exiles 6428 | -10/Exiles | Discovered new exit (range 14) 6457 | -10/Exiles | Welcomed by 8R-AWN 6482 | -10/Exiles | Met EX-HEX 6543 | -10/Exiles | Met EX-DEC 6669 | -10/Exiles | Discovered new exit (range 14) 6777 | -10/Exiles | Visited The Gauntlet 6985 | -10/Exiles | Met EX-BIN 7003 | -10/Exiles | Aligned with FarCom system 7005 | -10/Exiles | Given EX-Vault access code 7073 | -10/Exiles | Opened EX-Vault 7088 | -10/Exiles | Found Firepult 7099 | -10/Exiles | Found Latent Energy Streamer 7104 | -10/Exiles | Found Deploy-a-Sentry 7107 | -10/Exiles | Found Deploy-a-Sentry 7150 | -10/Exiles | Warned to stay clear of 0b10 Research branches 7294 | -10/Exiles | Stole three prototypes: Firepult, Latent Energy Streamer, Deploy-a-Sentry 7294 | -10/Exiles | Entered Mines 7479 | -9/Mines | Discovered new exit (range 14) 7483 | -9/Mines | Learned Materials trap positions 7486 | -9/Mines | Discovered new exit (range 9) 7570 | -9/Mines | Entered Materials 7570 | -8/Materials | Evolved 4 slots: Power x1, Propulsion x1, Utility x2 7571 | -8/Materials | Loaded intel: 15 trap records 7720 | -8/Materials | Core integrity fell below 50% 7749 | -8/Materials | Core integrity fell below 20% 7758 | -8/Materials | Destroyed by Y-45 Defender with Heavy Assault Rifle Last Messages --------------- 07706_ K-01 Serf collects debris. 07721_ Acquired Nuclear Core. 07731_ Door malfunctions. 07731_ Imp. Heat Sink fried. 07731_ G-47 Trooper destroyed. 07731_ Atomic Centrifuge disabled. 07734_ Carbon-fiber Leg destroyed. 07737_ Nuclear Core destroyed. 07741_ Critical hit (Burn: +37). 07743_ K-01 Serf collects debris. 07746_ U-05 Engineer repairs door. 07747_ K-01 Serf collects debris. 07747_ G-47 Trooper IFF system glitched. 07748_ U-05 Engineer lays Concrete. 07750_ K-01 Serf collects debris. 07750_ U-05 Engineer lays Concrete. 07757_ Penetrated by Slug. 07758_ U-05 Engineer lays Concrete. 07758_ K-01 Serf collects debris. 07758_ Latent Energy Streamer destroyed. Map ----- +----------------------------------------------------+ | ?????????????????????????????????????????????????? | | ?????????????????????????????????????????????????? | | ?????????????????????????????????????????????????? | | ?????????????????????????????????????????????????? | | ?????????????????????????????????????????????????? | | ?????????????????????????????????????????????????? | | ?????????????????????????????????????????????????? | | ?????????????????????????????????????????????????? | | ?????????????????????????????????????????????????? | | ?????????????????????????????????????????????????? | | ?????????????????????????????????????????????????? | | ?????????????????????????????????????????????????? | | ?????????????????????????????????????????????????? | | ?????????????????????????????????????????????????? | | ?????????????????????????????????????????????????? | | ?????????????????????????????????????????????????? | | ?????????????????????????????????????????????????? | | ?????????????????????????????????????????????????? | | ?????????????????????????????????????????????????? | | ?????????????????????????????????????????????????? | | ?????????????????????????????????????????????????? | | ????????????????????????????###??????????????????? | | ?????????????????????######## #??????????????????? | | ?????????????????????# #????????? ????????? | | ?????????????????????# "T" #?????????+####????? | | ?????????????????????# @ Y #???# #????? | | ?????????????????????# !! #???# ###### | | ?????????????????????# ! #???# """ # | | ?????????????????????# g "" #???# """"" # "S | | ???????????????????? ; = g " #???# """"" # """ | | ???????????????????# ;=% u " #???# """"" + "" | | ???????????????????# ; k #???# """ # | | ???????????????????##;;;;#+####???#[ = | | ????????????????????# ; ##########" | | ????????????????????#### % ! | | ?????????????????????### T *% | | ?????????????????# h ! % | | ?????????????????####### ########## # | | ???????????????????????#######?????# # | | ???????????????????????????????????#" """ # "" | | ???????????????????????????????????#T """""# "" | | ?????????????????Y?????????????????#" """""# "" | | ???????????????????????????????????# """""# | | ???????????????????????????????????# """ # | | ???????????????????????????????????#= ###+## | | ???????????????????????????????????# #?# #? | | ???????????????????????????????????# [ #?# #? | | ???????????????????????????????################ #? | | ???????????????????????????????# ## #? | | ???????????????????????????????# ## #? | +----------------------------------------------------+ Best States ------------- Heat Dissipation 31 Energy Generation 15 Energy Capacity 240 Matter Stores 300 Matter Capacity 300 Sight Range 16 Terrain Scan Density 10 Resistance: EX 25 Evasion (%) 55 Recoil Reduction 2 Item Schematics ----------------- None Robot Schematics ------------------ None Fabricated ------------ Nothing Repaired ---------- Shock Absorption System | 25% | -10/Materials Studied --------- None Alien Tech Used ----------------- None Achievements -------------- Follow The Leader Sixth Sense You Again Challenges ------------ None Game ------ Seed ImpactFusionImpeller Manual? 0 Play Time 00:35:41 Cumulative 6.9 hours Start 2026.04.05 @ 09:33:56 End 2026.04.05 @ 10:20:07 Sessions 1 Manual Loads 0 Difficulty Rogue Special Mode None Game No. 14 Rogue 11 Adventurer 3 Explorer 0 Win Type - Total 0 Types 0/0/0/0/0/0/0/0/0/0 Lore% 7 Gallery% 8 Achievement% 10 Wizard Run 0 Options --------- Layout 2 ASCII 0 Keyboard 0 Movement Mouse Keybinds 0 Fullscreen 1 Font 32/SmallcapsGlow Map View 50x44 Zoom Use 0% Tactical HUD 1 Map Filters NONE Filters NONE Steam 1 RUN: 877660fc-b0d5-47e2-9e6b-95cb18d9af27